bitfinex/quotes_ETHUSD_20220106
["timestamp","ask_amount","ask_price","bid_price","bid_amount"]
[1641510827693,0.00227369,3422.3,3422.2,2.18526299]
[1641510827995,1.30581914,3422.3,3422.2,2.18526299]
[1641510829025,0.00227369,3422.3,3422.2,2.18526299]
[1641510832803,0.73297369,3422.3,3422.2,2.18526299]
[1641510833786,2.1926344,3422.3,3421.8,0.0048488]
[1641510834187,0.00170527,3422.2,3421.8,0.0048488]
[1641510834587,1.09548176,3422.0,3421.8,0.0048488]
[1641510835186,1.09548176,3422.0,3421.6,0.73067]
[1641510835587,1.09548176,3422.0,3421.7,0.00113685]
[1641510837626,1.09548176,3421.9,3421.7,0.00113685]
[1641510838726,1.1210121,3421.8,3421.7,0.00113685]
[1641510839926,1.70457011,3421.8,3421.7,0.00113685]
[1641510840581,0.58355801,3421.8,3421.7,2.21869877]
[1641510841579,1.3325972,3422.0,3421.9,0.73048]
[1641510841978,1.3325972,3422.0,3421.9,2.90298905]
[1641510842379,1.91615521,3422.0,3421.9,0.73048]
[1641510842883,1.91615521,3422.0,3421.9,2.87585045]
[1641510843082,1.91615521,3422.0,3421.8,0.73048]
[1641510844445,1.91615521,3422.0,3421.8,1.4609515]
[1641510844847,0.58355801,3421.9,3421.8,1.4609515]
[1641510850885,0.58355801,3421.9,3421.7,0.00113685]
[1641510850886,1.51395801,3421.9,3421.7,0.00113685]
[1641510851084,2.97495801,3421.9,3421.7,0.00113685]
[1641510851384,2.97495801,3421.9,3421.6,0.00170527]
[1641510851833,1.67903977,3421.8,3421.6,0.00170527]
[1641510852132,2.40979977,3421.8,3421.2,0.00397896]
[1641510852332,1.07755282,3421.3,3421.2,0.00397896]
[1641510853233,2.54139332,3421.3,3421.2,0.00397896]
[1641510853635,2.54139332,3421.3,3421.1,0.00454739]
[1641510854235,3.12495133,3421.3,3421.1,0.00454739]
[1641510855040,0.58355801,3421.2,3421.1,0.00454739]
[1641510855280,1.43395801,3421.2,3421.1,0.00454739]
[1641510855476,3.72531865,3421.2,3421.1,0.00454739]
[1641510855678,1.43395801,3421.2,3421.1,0.00454739]
[1641510855878,2.16487801,3421.2,3421.1,0.00454739]
[1641510856578,2.16487801,3421.2,3420.9,0.00568423]
[1641510857889,2.16487801,3421.2,3420.6,0.0073895]
[1641510858379,0.58355801,3421.1,3420.6,0.0073895]
[1641510858785,0.58355801,3421.1,3420.5,0.7307945]
[1641510859031,0.58355801,3421.1,3420.4,0.00852635]
[1641510859231,0.58355801,3421.1,3420.6,0.0073895]
[1641510859434,2.54036912,3421.7,3420.8,1.48532853]
[1641510859435,0.58355801,3421.0,3420.8,1.48532853]
[1641510859832,0.58355801,3421.0,3420.9,3.15568423]
[1641510860233,0.58355801,3421.0,3420.9,3.19351545]
[1641510860435,1.09548176,3421.6,3420.9,3.19351545]
[1641510860735,1.45966071,3421.9,3421.3,30.60089236]
[1641510860736,1.09548176,3421.9,3421.3,30.60089236]
[1641510860933,1.09548176,3421.9,3421.6,0.73051]
[1641510861336,1.09548176,3421.9,3421.7,0.00113685]
[1641510861532,1.43215009,3421.8,3421.7,0.73163535]
[1641510862233,1.43215009,3421.8,3421.7,2.9474597]
[1641510862632,1.43215009,3421.8,3421.7,5.07777711]
[1641510863083,1.43215009,3421.8,3421.7,3.59246276]
[1641510863281,1.43215009,3421.8,3421.7,1.46214535]
[1641510863683,1.43215009,3421.8,3421.7,3.70717907]
[1641510863885,1.43215009,3421.8,3421.7,1.46214535]
[1641510864083,1.43215009,3421.8,3421.7,3.61668787]
[1641510864284,0.00170527,3422.2,3421.7,3.61668787]
[1641510864483,0.00170527,3422.2,3421.7,0.00113685]
[1641510864689,0.00113685,3422.1,3421.7,1.4864512]
[1641510864983,0.00341054,3422.5,3421.7,3.6260269]
[1641510865183,1.41711686,3421.8,3421.7,3.6260269]
[1641510865584,1.41711686,3421.8,3421.7,1.4864512]
[1641510867747,1.41711686,3421.8,3421.7,0.00113685]
[1641510867944,0.00284212,3422.4,3421.7,0.00113685]
[1641510868144,0.00284212,3422.4,3422.0,0.73051]
[1641510869346,0.00284212,3422.4,3422.0,1.46099]
[1641510869645,1.36405461,3422.4,3422.1,0.73047]
[1641510880882,0.55034958,3422.3,3422.1,0.73047]
[1641510881282,0.00170527,3422.2,3422.1,0.73047]
[1641510886592,0.55466144,3422.2,3421.8,2.94627435]
[1641510886992,0.00113685,3422.1,3421.8,2.94627435]
[1641510887196,0.00113685,3422.1,3421.8,3.67683435]
[1641510887793,0.00113685,3422.1,3421.8,2.94627435]
[1641510888593,0.00113685,3422.1,3421.8,1.46096]
[1641510890236,0.00113685,3422.1,3421.9,1.48531435]
[1641510891636,0.00113685,3422.1,3421.8,3.67682435]
[1641510892249,0.00113685,3422.1,3421.8,2.94627435]
[1641510895591,0.00113685,3422.1,3421.8,1.46096]
[1641510897439,0.00113685,3422.1,3421.8,4.63917983]
[1641510897643,0.00113685,3422.1,3421.8,2.19151]
[1641510897938,0.00113685,3422.1,3421.9,0.73046]
[1641510898138,0.00113685,3422.1,3422.0,1.48531435]
[1641510898339,0.00113685,3422.1,3422.0,2.94616685]
[1641510898542,0.55295617,3422.3,3422.0,2.94616685]
[1641510898543,0.55295617,3422.3,3422.0,24.34116858]
[1641510898740,0.55295617,3422.3,3422.2,31.53435963]
[1641510898942,0.55295617,3422.8,3422.2,31.53435963]
[1641510899139,0.55295617,3422.8,3422.3,2.50356723]
[1641510899339,0.55295617,3422.8,3422.5,0.73026]
[1641510899539,1.09548176,3423.1,3422.6,0.7302509]
[1641510899741,1.09548176,3423.1,3422.8,0.73018]
[1641510899939,0.00511581,3423.0,3422.8,0.73018]
[1641510900400,0.00454738,3422.9,3422.8,0.73018]
[1641510900603,0.00454738,3422.9,3422.8,1.82702434]
[1641510901204,0.00454738,3422.9,3422.8,2.12702434]
[1641510901405,0.00454738,3422.9,3422.8,3.42702434]
[1641510901604,0.00454738,3422.9,3422.8,21.95735204]
[1641510901803,0.689217,3423.5,3422.8,23.41776204]
[1641510902003,0.689217,3423.5,3423.1,1.4603523]
[1641510902203,0.00284212,3423.4,3423.1,1.4603523]
[1641510902403,0.00284212,3423.4,3423.1,0.7301723]
[1641510902603,0.0022737,3423.3,3423.1,0.7301723]
[1641510903003,0.00170528,3423.2,3423.1,0.7301723]
[1641510903203,0.00170528,3423.2,3423.1,1.4603723]
[1641510905039,0.6843476,3423.5,3423.1,1.4603723]
[1641510905040,0.63605288,3423.5,3423.1,1.4603723]
[1641510905240,0.63605288,3423.5,3423.2,1.46044]
[1641510905542,0.00113684,3423.4,3423.2,1.46042]
[1641510905740,0.00113684,3423.4,3423.2,2.1906426]
[1641510906341,0.00113684,3423.4,3423.3,0.73023]
[1641510907989,0.00113684,3423.4,3423.2,0.73022]
[1641510908391,0.00113684,3423.4,3422.8,1.48531435]
[1641510908392,0.00113684,3423.4,3422.9,0.73043]
[1641510908592,0.00113684,3423.4,3422.8,3.67057734]
[1641510908791,0.73156684,3423.4,3423.0,0.00113685]
[1641510908990,0.00113684,3423.4,3423.0,0.00113685]
[1641510909191,1.1477139,3423.3,3423.0,0.00113685]
[1641510909390,1.1477139,3423.3,3423.2,0.47347306]
[1641510914341,1.8781339,3423.3,3423.2,0.47347306]
[1641510914739,6.5086178,3423.3,3423.2,0.47347306]
[1641510915140,7.61794943,3423.3,3423.2,0.47347306]
[1641510915384,9.90565233,3423.3,3423.2,0.47347306]
[1641510915991,7.46531304,3423.3,3423.2,0.17567306]
[1641510916289,0.73064,3423.0,3422.7,0.00284212]
[1641510916487,0.7306627,3422.9,3422.6,5.098e-05]
[1641510916686,0.88689954,3422.9,3422.6,5.098e-05]
[1641510917088,1.53767663,3422.7,3422.6,5.098e-05]
[1641510917288,1.53767663,3422.7,3422.1,1.48531435]
[1641510917289,0.73067,3422.5,3422.1,1.48531435]
[1641510917489,1.10565429,3422.3,3422.1,1.48531435]
[1641510917687,1.10565429,3422.3,3422.2,0.00284212]
[1641510917888,0.6308,3422.5,3422.2,0.00284212]
[1641510918591,1.3915053,3422.4,3422.2,0.00284212]
[1641510918789,1.3915053,3422.4,3422.0,0.00397897]
[1641510919255,1.3915053,3422.4,3422.0,1.48929332]
[1641510919656,0.73067,3422.3,3422.1,0.00341054]
[1641510920058,2.59636512,3422.4,3422.1,0.00341054]
[1641510920656,2.59636512,3422.4,3422.0,0.00397897]
[1641510921265,3.32699512,3422.4,3422.0,0.00397897]
[1641510921659,3.32699512,3422.4,3422.1,0.7306]
[1641510921858,4.01759512,3422.4,3422.1,0.7306]
[1641510922658,4.01759512,3422.4,3422.0,0.73462897]
[1641510923093,4.01759512,3422.4,3422.1,0.00341054]
[1641510923498,4.01676719,3422.4,3422.1,0.00341054]
[1641510924199,6.10165423,3422.4,3422.1,0.00341054]
[1641510924395,0.73065,3422.0,3421.9,1.48531435]
[1641510924593,0.73065,3422.0,3421.7,2.22932289]
[1641510924594,1.88145,3422.0,3421.7,2.22932289]
[1641510924795,1.88145,3422.0,3421.9,0.00113685]
[1641510924995,3.34245,3422.0,3421.9,0.00113685]
[1641510925393,4.07335,3422.0,3421.9,0.00113685]
[1641510925594,5.18174093,3422.0,3421.3,0.00454739]
[1641510925793,1.4618911,3421.7,3421.5,0.00490686]
[1641510926003,2.80457799,3421.6,3421.5,0.00490686]
[1641510926643,5.65344261,3421.6,3421.5,0.00490686]
[1641510927041,6.76183354,3421.6,3421.5,0.00490686]
[1641510927241,1.31300168,3420.4,3420.1,3.7525257]
[1641510927444,0.73092,3421.1,3420.1,3.7525257]
[1641510927640,0.73092,3421.1,3420.5,0.73092]
[1641510928042,2.32436981,3421.5,3420.6,0.00852635]
[1641510928241,0.42,3421.5,3420.6,0.00852635]
[1641510928441,2.62586532,3421.5,3420.6,0.00852635]
[1641510928642,1.51440403,3421.1,3420.4,0.0096632]
[1641510928844,1.51440403,3421.1,3420.6,0.73083]
[1641510929250,1.51440403,3421.1,3420.7,0.00795793]
[1641510929744,1.51440403,3421.1,3420.4,0.0096632]
[1641510930594,1.51440403,3421.1,3420.7,0.73084]
[1641510930994,1.51440403,3421.1,3420.8,0.00738951]
[1641510931593,1.48253733,3421.1,3420.8,0.00738951]
[1641510934041,1.32399683,3421.1,3420.9,1.48565989]
[1641510934444,1.32399683,3421.1,3421.0,0.00625266]
[1641510936043,1.32399683,3421.1,3420.7,0.00795793]
[1641510936846,2.05490683,3421.1,3420.7,0.00795793]
[1641510937900,2.04910931,3421.1,3420.7,0.00795793]
[1641510939200,1.31819931,3421.1,3420.7,0.00795793]
[1641510940301,2.04909931,3421.1,3420.7,0.00795793]
[1641510940602,2.46909931,3421.1,3420.7,0.00795793]
[1641510941002,1.461,3421.0,3420.7,0.00795793]
[1641510941204,2.63611156,3420.9,3420.7,0.00795793]
[1641510941544,3.97271156,3420.9,3420.7,0.00795793]
[1641510942146,7.231,3420.8,3420.7,0.00795793]
[1641510943745,1.881,3420.8,3420.7,0.00795793]
[1641510943946,0.73111,3420.7,3420.3,0.01023163]
[1641510944147,1.28206235,3420.5,3420.3,0.01023163]
[1641510944849,1.98026235,3420.5,3420.3,0.01023163]
[1641510945387,3.44126235,3420.5,3420.3,0.01023163]
[1641510945589,1.98026235,3420.5,3420.3,0.01023163]
[1641510945988,4.2698147,3420.5,3420.3,0.01023163]
[1641510947196,1.461,3420.4,3420.3,0.01023163]
[1641510947393,5.511,3420.4,3420.3,0.01023163]
[1641510948292,1.461,3420.4,3420.3,0.01023163]
[1641510949750,1.881,3420.4,3420.3,0.01023163]
[1641510950349,4.531,3420.4,3420.3,0.01023163]
[1641510950552,1.881,3420.4,3420.3,0.01023163]
[1641510951349,4.281,3420.4,3420.3,0.01023163]
[1641510951750,1.881,3420.4,3420.3,0.01023163]
[1641510952254,2.61216,3420.4,3420.3,0.01023163]
[1641510963699,2.91216,3420.4,3420.3,0.01023163]
[1641510964850,2.61216,3420.4,3420.3,0.01023163]
[1641510968197,3.23786,3420.4,3420.3,0.01023163]
[1641510969095,3.23786,3420.4,3419.6,0.00490708]
[1641510969096,2.1937977,3420.0,3419.6,7.08e-06]
[1641510969296,2.1937977,3420.0,3419.3,1.1]
[1641510969297,5.85,3419.7,3419.3,0.47120708]
[1641510969498,1.461,3419.4,3418.9,1.48565989]
[1641510969799,0.5501,3419.6,3418.7,4.41377575]
[1641510969800,20.77,3419.2,3419.0,1.48184672]
[1641510969996,2.76194286,3419.0,3418.7,4.41377575]
[1641510970198,1.461,3418.8,3418.2,1.84629451]
[1641510970396,1.1516315,3418.7,3418.2,1.84629451]
[1641510970599,2.09608576,3418.6,3418.2,1.84629451]
[1641510970797,0.42,3418.5,3418.2,1.84629451]
[1641510971198,0.42,3418.5,3418.4,0.05170526]
[1641510971654,1.881,3418.5,3418.4,0.05170526]
[1641510971853,4.1096175,3418.5,3418.4,0.05170526]
[1641510973053,2.6486175,3418.5,3418.4,0.05170526]
[1641510973259,4.1096175,3418.5,3418.4,0.05170526]
[1641510973854,1.881,3418.5,3418.4,0.05170526]
[1641510975597,2.644698,3418.5,3418.4,0.05170526]
[1641510975807,0.73138,3418.9,3418.4,0.05170526]
[1641510976197,0.73138,3418.9,3418.5,0.00284212]
[1641510976599,1.93050456,3418.9,3418.5,0.00284212]
[1641510978402,0.73145,3418.8,3418.5,0.00284212]
[1641510978600,0.73145,3418.7,3418.5,0.00284212]
[1641510983196,1.4629093,3418.7,3418.5,0.00284212]
[1641510987567,1.03519198,3418.6,3418.5,0.00284212]
[1641510991613,3.28202127,3418.6,3418.5,0.00284212]
[1641510991816,1.03519198,3418.6,3418.5,0.00284212]
[1641510992617,5.4925593,3418.6,3418.4,0.04829472]
[1641510992818,0.7317,3418.4,3418.2,1.84629451]
[1641510993018,3.5821779,3418.3,3418.2,1.84629451]
[1641510993219,3.5821779,3418.3,3417.9,0.3117]
[1641510993220,20.6521779,3418.3,3417.9,0.3117]
[1641510993418,1.40764805,3418.2,3417.9,0.3117]
[1641510993618,1.82764805,3418.2,3418.0,0.00284212]
[1641510993819,2.27012595,3418.1,3418.0,0.00284212]
[1641510994452,2.55935805,3418.2,3418.0,0.00284212]
[1641510994652,0.73169,3418.1,3418.0,0.00284212]
[1641510995250,2.19269,3418.1,3418.0,0.00284212]
[1641510995451,0.73169,3418.1,3418.0,0.00284212]
[1641510997253,2.99305897,3418.1,3418.0,0.00284212]
[1641510997452,0.68169,3418.1,3418.0,0.00284212]
[1641511009354,1.10169,3418.1,3418.0,0.00284212]
[1641511011056,0.68169,3418.1,3418.0,0.00284212]
[1641511011255,5.02996364,3418.5,3418.0,0.00284212]
[1641511011455,5.02996364,3418.5,3418.0,0.01566574]
[1641511011658,3.56896364,3418.5,3418.0,0.01566574]
[1641511011856,3.56896364,3418.5,3418.1,0.00227369]
[1641511012059,2.46057271,3418.5,3418.1,0.00227369]
[1641511012458,0.7314398,3418.4,3418.1,0.00227369]
[1641511013703,1.47356871,3418.3,3418.1,0.00227369]
[1641511013909,1.4628998,3418.4,3418.1,0.00227369]
[1641511014104,0.73146,3418.7,3418.1,0.00227369]
[1641511014105,0.7314,3418.5,3418.1,0.00227369]
[1641511015405,1.28586694,3418.3,3418.1,0.00227369]
[1641511018751,2.01730694,3418.3,3418.1,0.00227369]
[1641511019350,2.01730694,3418.3,3417.9,0.26397369]
[1641511020605,1.28586694,3418.3,3417.9,0.26397369]
[1641511021805,2.01730694,3418.3,3417.9,0.26397369]
[1641511022207,3.48025154,3418.3,3417.9,0.26397369]
[1641511022613,1.28586694,3418.3,3417.9,0.26397369]
[1641511023007,0.73149,3418.1,3417.9,0.26397369]
[1641511023207,1.4630033,3418.1,3417.9,0.26397369]
[1641511023610,0.73149,3418.1,3417.9,0.26397369]
[1641511024667,2.01730694,3418.3,3417.9,0.26397369]
[1641511027905,0.7314839,3418.2,3417.9,0.26397369]
[1641511028106,0.73151,3418.1,3417.9,0.26397369]
[1641511029305,2.06694397,3418.1,3417.9,0.26397369]
[1641511029704,2.79845157,3418.1,3417.9,0.26397369]
[1641511032353,4.26162157,3418.1,3417.9,0.26397369]
[1641511038013,2.19197463,3418.0,3417.9,0.26397369]
[1641511038216,4.26162157,3418.1,3417.9,0.26397369]
[1641511038413,6.46048538,3418.1,3417.9,0.26511054]
[1641511039062,2.18617471,3418.0,3417.9,0.26511054]
[1641511039452,4.26162157,3418.1,3417.9,0.26511054]
[1641511039453,6.46746945,3418.1,3417.9,0.26511054]
[1641511039652,4.26162157,3418.1,3417.9,0.26511054]
[1641511039853,5.3700125,3418.1,3417.9,0.26511054]
[1641511040654,4.26162157,3418.1,3417.9,0.26511054]
[1641511059515,1.10839093,3418.0,3417.9,0.26511054]
[1641511061111,5.3700125,3418.1,3417.9,0.26511054]
[1641511065814,1.10839093,3418.0,3417.9,0.26511054]
[1641511067612,5.3700125,3418.1,3417.9,0.26511054]
[1641511068414,5.3700125,3418.1,3417.9,0.26397369]
[1641511072262,1.10839093,3418.0,3417.9,0.26397369]
[1641511074911,4.09397891,3418.0,3417.9,0.26397369]
[1641511075111,3.28179,3417.9,3417.8,0.7317]
[1641511075410,4.70179,3417.9,3417.8,0.73340527]
[1641511075610,4.70179,3417.9,3417.4,0.5495213]
[1641511075812,0.7318001,3417.7,3417.4,0.5495213]
[1641511076011,0.7318001,3417.7,3417.5,0.00170527]
[1641511076012,1.33580397,3417.6,3417.5,0.00170527]
[1641511076311,1.63580397,3417.6,3417.5,0.00170527]
[1641511076558,3.09941397,3417.6,3417.5,0.00170527]
[1641511077157,5.43794528,3417.6,3417.5,0.00170527]
[1641511077359,7.62502234,3417.6,3417.5,0.00170527]
[1641511079359,5.28649103,3417.6,3417.5,0.00170527]
[1641511079559,4.98649103,3417.6,3417.5,0.00170527]
[1641511080508,3.53122397,3417.6,3417.5,0.00170527]
[1641511081314,2.79941397,3417.6,3417.5,0.00170527]
[1641511082111,3.89096723,3417.6,3417.5,0.00170527]
[1641511083113,2.79941397,3417.6,3417.5,0.00170527]
[1641511084957,3.89096723,3417.6,3417.5,0.00170527]
[1641511085759,2.79941397,3417.6,3417.5,0.00170527]
[1641511085962,3.09941397,3417.6,3417.5,0.00170527]
[1641511086560,4.19096723,3417.6,3417.5,0.00170527]
[1641511087360,3.09941397,3417.6,3417.5,0.00170527]
[1641511088711,4.55318536,3417.6,3417.5,0.00170527]
[1641511089512,3.09941397,3417.6,3417.5,0.00170527]
[1641511091114,4.555771,3417.6,3417.5,0.00170527]
[1641511092165,3.09941397,3417.6,3417.5,0.00170527]
[1641511093866,4.5573384,3417.6,3417.5,0.00170527]
[1641511096814,3.09941397,3417.6,3417.5,0.00170527]
[1641511097614,4.56041397,3417.6,3417.5,0.00170527]
[1641511100364,5.32430383,3417.6,3417.5,0.00170527]
[1641511100969,5.32430383,3417.6,3417.4,0.50122657]
[1641511101166,0.731795,3417.5,3417.4,0.50122657]
[1641511101367,2.192795,3417.5,3417.4,0.50122657]
[1641511102267,3.29397888,3417.5,3417.4,0.50122657]
[1641511102568,2.56218388,3417.5,3417.4,0.50122657]
[1641511104419,1.10118388,3417.5,3417.4,0.50122657]
[1641511114866,4.25118388,3417.5,3417.4,0.50122657]
[1641511115061,1.40118388,3417.5,3417.4,0.50122657]
[1641511115661,2.13296658,3417.5,3417.4,0.50122657]
[1641511116461,1.40118388,3417.5,3417.4,0.50122657]
[1641511119015,2.85771405,3417.5,3417.4,0.50122657]
[1641511119815,2.55771405,3417.5,3417.4,0.50122657]
[1641511121565,3.28951345,3417.5,3417.4,0.50122657]
[1641511122166,1.10118388,3417.5,3417.4,0.50122657]
[1641511127120,2.55586807,3417.5,3417.4,0.50122657]
[1641511127521,6.90586807,3417.5,3417.4,0.50122657]
[1641511127729,10.14417287,3417.5,3417.4,0.50122657]
[1641511127921,0.50122657,3417.3,3417.1,0.01029242]
[1641511128225,0.42,3417.2,3417.1,0.01029242]
[1641511128425,0.50865,3416.3,3416.1,2.99154986]
[1641511128626,0.50865,3416.3,3416.0,1.47491904]
[1641511128627,2.1929998,3416.2,3416.0,1.47491904]
[1641511128927,2.1929998,3416.2,3416.1,0.00795793]
[1641511129164,4.0771198,3416.2,3416.1,0.00795793]
[1641511129465,0.73213,3415.6,3415.1,3.9839]
[1641511129663,0.73215,3415.5,3415.0,7.67491904]
[1641511129864,0.73215,3415.5,3415.2,0.00511581]
[1641511130262,1.12262075,3415.4,3415.2,0.00511581]
[1641511130463,2.50702619,3415.4,3415.2,0.00511581]
[1641511130863,1.12262075,3415.4,3415.2,0.00511581]
[1641511131062,1.85472075,3415.4,3415.2,0.00511581]
[1641511131477,1.85472075,3415.4,3414.9,0.00682108]
[1641511131664,1.85472075,3415.4,3415.3,0.00095957]
[1641511132063,1.85472075,3415.4,3415.3,0.00550696]
[1641511132468,1.12262075,3415.4,3415.3,0.00550696]
[1641511133513,1.89491904,3416.0,3415.3,0.00550696]
[1641511133713,1.47491904,3416.0,3415.3,0.00550696]
[1641511133912,1.47491904,3416.0,3415.4,0.00397897]
[1641511134313,1.09313768,3416.2,3415.7,0.74383282]
[1641511134513,1.08881001,3416.4,3415.8,3.10527293]
[1641511134714,1.45468419,3416.5,3415.9,2.25]
[1641511134715,1.14181384,3416.5,3415.9,2.25]
[1641511134912,0.00113685,3416.3,3416.0,2.51650493]
[1641511135315,0.50122657,3417.3,3416.2,0.01292697]
[1641511135513,0.50122657,3417.3,3416.2,2.87684138]
[1641511135713,0.00170527,3416.6,3416.2,2.87684138]
[1641511135914,0.00170527,3416.6,3416.3,1.46324]
[1641511136112,0.00113684,3416.5,3416.4,2.25476773]
[1641511137372,0.00113684,3416.5,3416.4,2.08575002]
[1641511139571,0.00113684,3416.5,3416.3,3.60176153]
[1641511139774,0.00113684,3416.5,3416.3,1.40688803]
[1641511140172,0.00113684,3416.5,3416.2,0.7317787]
[1641511140826,1.34102574,3416.4,3416.2,0.7317787]
[1641511145887,1.34102574,3416.4,3416.2,2.21954203]
[1641511146287,0.00113684,3416.5,3416.2,2.21954203]
[1641511146486,0.00113684,3416.5,3416.2,0.7317787]
[1641511147490,1.46069744,3416.4,3416.2,0.7317787]
[1641511148321,1.46069744,3416.4,3416.0,1.931436]
[1641511148527,0.00113684,3416.3,3415.9,1.4635191]
[1641511149626,0.00113684,3416.3,3416.0,2.88190478]
[1641511149822,1.18659814,3416.3,3415.9,1.4635191]
[1641511154373,1.18659814,3416.3,3416.1,0.7318116]
[1641511154569,1.18659814,3416.3,3415.6,2.96350499]
[1641511154774,1.18659814,3416.3,3415.6,2.23164499]
[1641511154970,1.18659814,3416.3,3415.7,0.00227369]
[1641511155170,1.48659814,3416.3,3415.7,0.00227369]
[1641511155422,2.21856814,3416.3,3415.7,0.00227369]
[1641511155622,2.21856814,3416.3,3415.6,0.00284212]
[1641511155821,0.73197,3416.0,3415.6,0.00284212]
[1641511156021,2.95052814,3416.3,3415.6,0.00284212]
[1641511156522,2.95052814,3416.3,3415.4,0.00397897]
[1641511157126,1.0924914,3416.0,3415.4,0.00397897]
[1641511157526,1.0924914,3416.0,3415.3,0.00454739]
[1641511157926,1.0924914,3416.0,3415.4,0.731943]
[1641511158225,1.0924914,3416.0,3415.5,0.00341054]
[1641511158425,1.0924914,3416.0,3415.4,0.72955601]
[1641511158626,0.00227369,3415.9,3415.2,2.0774819]
[1641511158826,0.00227369,3415.9,3415.1,6.80982559]
[1641511158827,1.42316572,3415.3,3415.1,6.80982559]
[1641511159066,1.42316572,3415.3,3415.1,2.95192559]
[1641511159269,1.42316572,3415.3,3415.2,1.48805879]
[1641511160069,1.42316572,3415.3,3415.1,3.69551179]
[1641511160271,1.42316572,3415.3,3415.2,2.09634911]
[1641511161270,1.42316572,3415.3,3415.1,4.42744179]
[1641511161468,1.42316572,3415.3,3415.2,2.11356051]
[1641511161669,1.42316572,3415.3,3415.1,4.42744179]
[1641511161869,1.42316572,3415.3,3415.1,6.51876352]
[1641511162071,1.42316572,3415.3,3415.2,2.08514821]
[1641511162269,0.00170527,3415.8,3415.2,2.08514821]
[1641511162472,0.00170527,3415.8,3415.5,0.73184]
[1641511162671,0.00113685,3415.7,3415.5,0.73184]
[1641511162920,0.00113685,3415.7,3415.6,2.07968687]
[1641511163119,0.00397896,3416.2,3415.6,2.07968687]
[1641511163318,0.00397896,3416.2,3415.6,3.56758844]
[1641511163319,0.00113685,3415.7,3415.6,3.56758844]
[1641511163518,0.00492443,3416.2,3415.6,4.29945844]
[1641511163519,1.25644973,3416.1,3415.6,4.29945844]
[1641511163718,0.00113685,3415.7,3415.6,4.29948444]
[1641511163918,0.00284212,3416.0,3415.6,4.29948444]
[1641511164119,0.00113685,3415.7,3415.6,4.29948444]
[1641511164318,0.00227369,3415.9,3415.6,2.81158287]
[1641511164519,0.00113685,3415.7,3415.6,2.81158287]
[1641511164720,1.34914796,3415.7,3415.6,0.731896]
[1641511164920,1.34914796,3415.7,3415.3,0.73299685]
[1641511164921,1.34914796,3415.7,3415.3,0.00113685]
[1641511164922,1.35028481,3415.7,3415.3,0.00113685]
[1641511165323,1.35028481,3415.7,3415.2,0.00170527]
[1641511167778,2.08232481,3415.7,3415.2,0.00170527]
[1641511168377,2.08232481,3415.7,3415.0,0.00284212]
[1641511168574,2.08232481,3415.7,3414.8,0.00397897]
[1641511168777,1.17825471,3415.6,3414.8,0.00397897]
[1641511169175,1.17825471,3415.6,3414.9,0.732044]
[1641511169678,1.17825471,3415.6,3415.0,0.00284212]
[1641511170077,1.17825471,3415.6,3415.1,0.7320051]
[1641511170319,1.17825471,3415.6,3414.9,1.4639416]
[1641511170516,1.17825471,3415.6,3415.2,0.00170527]
[1641511170715,1.17825471,3415.6,3415.1,0.73198]
[1641511171120,1.17825471,3415.6,3415.2,0.00170527]
[1641511172117,1.17825471,3415.6,3415.1,0.0022737]
[1641511172318,1.17825471,3415.6,3415.2,1.48790157]
[1641511172925,1.91030471,3415.6,3415.2,1.48790157]
[1641511173121,1.91030471,3415.6,3415.1,1.48790157]
[1641511173522,1.91030471,3415.6,3415.2,0.00170527]
[1641511174171,1.17825471,3415.6,3415.2,0.00170527]
[1641511174373,1.17825471,3415.6,3415.1,0.0022737]
[1641511174569,1.17825471,3415.6,3415.3,0.00083155]
[1641511175071,1.91034471,3415.6,3415.3,0.00083155]
[1641511175873,0.7321,3415.5,3415.3,0.00083155]
[1641511176073,2.86299,3415.5,3415.3,0.00083155]
[1641511176876,3.9554814,3415.5,3415.3,0.00083155]
[1641511177928,2.4910914,3415.5,3415.3,0.00083155]
[1641511178124,3.9520914,3415.5,3415.3,0.00083155]
[1641511179823,2.8596,3415.5,3415.3,0.00083155]
[1641511183775,2.1931,3415.5,3415.3,0.00083155]
[1641511184173,1.59825471,3415.6,3415.3,0.00083155]
[1641511184571,1.89825471,3415.6,3415.3,0.00083155]
[1641511185421,0.73207,3415.5,3415.3,0.00083155]
[1641511186823,2.19307,3415.5,3415.3,0.00083155]
[1641511187023,2.61645,3415.5,3415.3,0.00083155]
[1641511187222,1.76438,3415.4,3415.3,0.00083155]
[1641511187422,3.22538,3415.4,3415.3,0.00083155]
[1641511187824,5.42366652,3415.4,3415.3,0.00083155]
[1641511188025,3.22538,3415.4,3415.3,0.00083155]
[1641511188628,2.92538,3415.4,3415.3,0.00083155]
[1641511188826,5.17673802,3415.4,3415.3,0.00083155]
[1641511193831,2.92538,3415.4,3415.3,0.00083155]
[1641511195934,2.9255388,3415.3,3415.1,0.0022737]
[1641511196131,3.6578088,3415.3,3415.1,0.0022737]
[1641511196333,2.19327,3415.2,3414.4,0.00625266]
[1641511196591,1.46458,3415.0,3414.4,0.00625266]
[1641511196987,1.46455,3414.9,3414.4,0.00625266]
[1641511197888,1.41006263,3414.5,3414.4,0.00625266]
[1641511198289,2.73557915,3414.5,3414.4,0.00625266]
[1641511201635,2.73557915,3414.5,3414.3,1.37279326]
[1641511202832,2.73557915,3414.5,3414.3,0.64060026]
[1641511204276,3.46784915,3414.5,3414.3,0.64060026]
[1641511205481,2.73557915,3414.5,3414.3,0.64060026]
[1641511210738,0.73221,3414.8,3414.3,0.64060026]
[1641511210937,1.461,3415.2,3414.4,2.13170429]
[1641511211139,0.00170527,3414.7,3414.4,2.13170429]
[1641511211338,0.00170527,3414.7,3414.4,2.16659553]
[1641511211583,0.00113685,3414.6,3414.5,7.28199]
[1641511211784,0.00113685,3414.6,3414.5,9.62303063]
[1641511212381,0.00113685,3414.6,3414.5,10.35502063]
[1641511212583,0.00113685,3414.6,3414.5,14.71914383]
[1641511212889,1.0924914,3416.0,3414.6,23.65339019]
[1641511213083,1.0924914,3416.0,3415.3,0.73186]
[1641511213281,0.00511581,3415.5,3415.3,0.73186]
[1641511213482,0.00511581,3415.5,3415.4,2.09413702]
[1641511213680,1.18616975,3415.8,3415.4,2.09413702]
[1641511213882,1.18616975,3415.8,3415.5,0.7318808]
[1641511214083,0.00625266,3415.7,3415.5,0.7318808]
[1641511214485,1.4061577,3416.1,3415.5,0.7318808]
[1641511214486,0.00568423,3415.6,3415.5,0.7318808]
[1641511214682,0.00568423,3415.6,3415.5,2.89071669]
[1641511214882,0.00795793,3415.6,3415.5,2.89071669]
[1641511215934,5.793e-05,3415.6,3415.5,19.96071669]
[1641511216231,0.00492444,3415.9,3415.6,6.5]
[1641511216432,1.15235074,3416.5,3415.8,5.26251378]
[1641511216433,7.518e-05,3416.5,3415.8,5.26251378]
[1641511216630,7.518e-05,3416.5,3415.9,20.46964186]
[1641511216631,0.00227369,3416.4,3415.9,20.46964186]
[1641511216831,1.45420868,3416.8,3416.7,1.50808283]